bitfinex/quotes_ETHUSD_20260131
["timestamp","ask_amount","ask_price","bid_price","bid_amount"]
[1769826671098,2.05191977,2690.9,2690.4,0.0011]
[1769826671619,0.001,2690.8,2690.4,0.0011]
[1769826682453,0.001,2690.8,2690.4,7.41233655]
[1769826684160,0.001,2690.6,2690.4,7.41233655]
[1769826686429,0.001,2690.6,2690.4,0.0011]
[1769826689459,0.778,2691.2,2690.5,7.41123655]
[1769826689656,1.70695483,2691.2,2690.5,7.41123655]
[1769826690556,9.21944379,2691.2,2690.4,0.83537171]
[1769826691622,9.21944379,2691.2,2690.5,0.92919531]
[1769826694259,9.21944379,2691.2,2690.4,0.0011]
[1769826694469,7.51248896,2691.0,2690.4,0.0011]
[1769826695761,8.44154615,2690.9,2690.6,0.0011]
[1769826696692,8.44154615,2690.9,2690.2,0.0011]
[1769826696891,8.44154615,2690.9,2690.0,0.0011]
[1769826698396,8.45272287,2690.9,2689.9,0.0011]
[1769826698689,7.69706881,2690.7,2689.9,0.0011]
[1769826699881,7.69706881,2690.5,2689.9,0.0011]
[1769826700097,7.69706881,2690.3,2689.9,0.0011]
[1769826701497,0.778,2690.4,2689.9,0.0011]
[1769826701666,0.778,2690.4,2689.9,7.42928682]
[1769826707314,0.778,2690.4,2690.1,0.0011]
[1769826710217,1.70818174,2690.6,2690.1,0.0011]
[1769826710520,0.99300772,2690.5,2690.1,0.0011]
[1769826710924,0.779,2690.6,2690.1,0.0011]
[1769826711085,0.779,2690.6,2690.1,7.42928682]
[1769826711812,0.001,2691.0,2690.3,7.86694278]
[1769826712013,0.001,2691.0,2690.5,7.86694278]
[1769826712326,0.001,2691.0,2690.5,8.79612137]
[1769826719942,0.001,2690.8,2690.5,8.79612137]
[1769826720150,0.001,2691.0,2690.6,7.86694278]
[1769826720721,0.001,2691.3,2690.6,7.86694278]
[1769826720930,0.001,2691.3,2690.8,7.86694278]
[1769826721860,8.09069112,2691.3,2690.5,0.92917839]
[1769826722235,8.09069112,2691.3,2690.4,1.71590116]
[1769826722547,9.44210257,2691.3,2690.4,9.58284394]
[1769826722871,9.44210257,2691.3,2690.5,0.92918096]
[1769826724968,0.92895362,2691.2,2690.5,0.92918096]
[1769826725260,9.01864474,2691.2,2690.5,0.92918096]
[1769826730489,0.92993922,2691.3,2690.5,8.67505636]
[1769826730682,0.92993922,2691.3,2690.6,1.31786597]
[1769826730883,9.16428764,2691.3,2690.6,2.24702307]
[1769826731088,9.16428764,2691.3,2690.6,0.9291571]
[1769826731487,9.16428764,2691.3,2690.7,0.0011]
[1769826731687,8.23434842,2690.9,2690.3,0.0011]
[1769826732099,8.23434842,2690.9,2690.5,0.0011]
[1769826732256,9.05788326,2690.8,2690.5,0.0011]
[1769826733085,9.98697882,2690.8,2690.5,0.0011]
[1769826733459,9.98697882,2690.8,2690.3,0.0011]
[1769826734705,8.23434842,2690.6,2690.3,0.0011]
[1769826735302,9.16351806,2690.6,2690.3,0.0011]
[1769826735504,9.22850023,2690.5,2690.3,0.0011]
[1769826735666,9.94149394,2690.7,2690.3,0.0011]
[1769826744639,9.94149394,2690.7,2690.5,0.0011]
[1769826744803,0.001,2690.5,2690.3,0.0011]
[1769826748433,0.001,2691.0,2690.3,7.7469754]
[1769826748620,0.001,2691.0,2690.5,7.7458754]
[1769826749253,0.93002615,2691.0,2690.3,7.7469754]
[1769826749410,0.93002615,2691.0,2690.4,8.52057294]
[1769826750538,0.001,2691.0,2690.4,8.52057294]
[1769826750840,0.001,2691.0,2690.4,7.7458754]
[1769826754857,0.001,2691.0,2690.4,8.6750953]
[1769826757669,0.001,2691.0,2690.5,0.0011]
[1769826757986,0.001,2691.0,2690.5,7.67059537]
[1769826758281,0.001,2691.0,2690.7,8.00105487]
[1769826764764,0.001,2691.0,2690.6,0.85998153]
[1769826764966,0.001,2691.0,2690.6,8.00105487]
[1769826768024,8.08599041,2690.8,2690.3,0.0011]
[1769826768313,8.08599041,2690.5,2689.7,8.00215487]
[1769826768507,0.80859904,2690.4,2689.8,8.93268588]
[1769826768674,8.08599041,2690.6,2689.8,8.00325487]
[1769826769077,8.08599041,2690.6,2689.9,0.0011]
[1769826769301,8.89458945,2690.6,2689.9,0.0011]
[1769826769876,8.08599041,2690.4,2689.8,0.0011]
[1769826770431,8.86399041,2690.4,2689.8,0.0011]
[1769826770624,9.06530898,2690.3,2689.8,0.0011]
[1769826771476,9.06530898,2690.3,2689.7,0.0011]
[1769826771707,9.06530898,2690.3,2689.5,0.92953789]
[1769826771922,9.06530898,2690.3,2689.6,0.0011]
[1769826772112,9.06530898,2690.3,2689.4,0.0011]
[1769826772113,9.01528934,2690.2,2689.4,0.0011]
[1769826772317,9.99962024,2690.2,2689.4,0.0022]
[1769826772511,9.99962024,2690.2,2689.4,0.0011]
[1769826772714,9.99962024,2690.2,2689.5,0.0011]
[1769826774741,0.9843309,2690.2,2689.6,8.00215487]
[1769826774938,1.70725327,2690.4,2689.6,8.00105487]
[1769826775239,1.70725327,2690.4,2689.7,0.0011]
[1769826775437,9.79324368,2690.4,2689.7,0.0011]
[1769826775940,9.01524368,2690.4,2689.7,0.0011]
[1769826776238,9.79424368,2690.4,2689.7,0.0011]
[1769826776409,1.35111007,2690.3,2689.7,0.0011]
[1769826776616,1.35111007,2690.3,2689.8,0.0011]
[1769826776931,1.70825327,2690.4,2689.8,0.0011]
[1769826779740,0.92918497,2690.6,2690.0,8.00105487]
[1769826780540,3.71655448,2690.7,2690.0,8.00105487]
[1769826780844,11.80254489,2690.7,2690.1,0.0011]
[1769826781708,0.001,2690.2,2690.1,0.0011]
[1769826781910,0.001,2690.2,2689.6,8.93053828]
[1769826782109,0.001,2690.2,2689.7,0.0011]
[1769826782623,8.08699041,2690.2,2689.7,0.0011]
[1769826783126,8.08699041,2690.2,2689.4,8.93171101]
[1769826788324,9.01630975,2690.2,2689.5,0.0011]
[1769826789151,0.001,2690.2,2689.5,7.75503248]
[1769826789361,0.9303001,2690.2,2689.5,8.99555447]
[1769826790664,0.9303001,2690.2,2689.5,9.92507052]
[1769826791848,0.001,2690.2,2689.6,7.75393248]
[1769826792054,0.001,2690.2,2689.6,7.75503248]
[1769826792259,0.001,2690.2,2689.8,7.75393248]
[1769826792827,3.71655448,2690.7,2689.9,7.75503248]
[1769826793031,3.71655448,2690.7,2689.9,7.75393248]
[1769826793228,0.001,2690.8,2690.1,7.75393248]
[1769826793734,0.001,2690.8,2690.3,7.75393248]
[1769826793942,0.001,2690.8,2690.4,8.68316233]
[1769826797593,0.001,2691.0,2690.6,7.75393248]
[1769826797791,8.92307516,2691.5,2690.7,7.75503248]
[1769826797792,8.92305655,2691.5,2690.7,7.75503248]
[1769826797997,8.92305655,2691.5,2690.7,7.75393248]
[1769826798182,1.29440526,2691.5,2690.8,7.75503248]
[1769826798385,0.92884049,2691.6,2690.8,7.75393248]
[1769826798698,0.92884049,2691.6,2690.9,7.75503248]
[1769826798997,0.25696345,2691.7,2691.0,7.75393248]
[1769826799290,0.92863206,2692.2,2691.3,7.75393248]
[1769826799700,0.9285628,2692.4,2691.4,7.75503248]
[1769826799910,0.9285628,2692.4,2691.6,7.75393248]
[1769826800559,8.32303478,2692.7,2691.7,7.75503248]
[1769826800799,0.32883188,2692.7,2691.9,7.75393248]
[1769826800991,0.32883188,2692.7,2691.9,8.99369901]
[1769826801403,0.32883188,2692.7,2692.1,7.75393248]
[1769826802004,0.32883188,2692.7,2692.3,7.75393248]
[1769826802909,0.32883188,2692.7,2692.4,0.0011]
[1769826803287,0.92831005,2693.1,2692.5,7.75503248]
[1769826803492,0.46412884,2693.1,2692.5,7.75393248]
[1769826803900,1.39243081,2693.1,2692.5,7.75393248]
[1769826807320,9.38663371,2693.1,2692.1,7.75393248]
[1769826807621,7.9942029,2692.9,2692.0,0.0011]
[1769826807793,7.9942029,2692.9,2691.9,0.0011]
[1769826808179,7.9942029,2692.9,2692.0,0.0011]
[1769826808424,7.9942029,2692.7,2691.7,0.0011]
[1769826808630,8.7722029,2692.6,2691.7,0.0011]
[1769826808909,8.7722029,2692.6,2691.8,0.0011]
[1769826809080,8.7722029,2692.6,2691.7,0.0011]
[1769826809281,8.922708,2692.5,2691.7,0.0011]
[1769826809536,7.9942029,2692.3,2691.8,0.0011]
[1769826809725,7.9942029,2692.3,2691.5,0.92994708]
[1769826810032,7.9942029,2692.3,2691.6,0.0011]
[1769826810198,7.9942029,2692.3,2691.6,0.92990505]
[1769826810396,8.84637518,2692.3,2691.7,0.0011]
[1769826810837,3.71358008,2692.9,2691.9,7.75393248]
[1769826810838,0.92840166,2692.8,2691.9,7.75393248]
[1769826810993,0.92840166,2692.8,2691.6,0.92880505]
[1769826810994,7.9942029,2692.7,2691.7,7.75503248]
[1769826811194,0.92847062,2692.6,2691.8,0.92874656]
[1769826812217,0.92847062,2692.6,2691.8,8.68267904]
[1769826816103,0.92847062,2692.6,2691.9,0.0011]
[1769826816435,0.92847062,2692.6,2691.9,7.75503248]
[1769826816622,0.001,2692.5,2691.9,7.75503248]
[1769826818553,0.001,2692.5,2692.0,0.0011]
[1769826819047,0.001,2692.5,2692.0,7.80578146]
[1769826820255,0.001,2692.5,2692.0,8.73445854]
[1769826821724,0.001,2692.5,2692.1,7.80578146]
[1769826822115,0.001,2692.5,2692.2,0.0011]
[1769826826641,8.95562067,2692.5,2692.2,0.0011]
[1769826826854,8.14147334,2692.5,2692.2,0.0011]
[1769826827758,0.001,2692.5,2692.2,0.0011]
[1769826829648,0.001,2692.5,2692.3,0.0011]
[1769826829945,0.001,2692.5,2692.1,7.80578146]
[1769826830156,0.001,2692.5,2692.1,8.58646961]
[1769826830663,0.001,2692.5,2692.2,0.92970857]
[1769826831732,0.001,2692.5,2692.2,7.80578146]
[1769826832667,0.001,2692.5,2692.3,7.80468146]
[1769826833175,0.001,2692.5,2692.4,0.0011]
[1769826833373,1.70634363,2693.0,2692.4,0.78167815]
[1769826833533,9.84681697,2693.0,2692.5,0.0011]
[1769826833736,9.84681697,2693.0,2692.2,0.92860857]
[1769826834060,9.84681697,2693.0,2692.2,0.0011]
[1769826836057,9.84681697,2693.0,2692.3,0.0011]
[1769826836371,9.49647837,2692.9,2692.2,0.0011]
[1769826838669,10.42485564,2692.9,2692.2,0.0011]
[1769826841163,10.42485564,2692.9,2692.3,0.0011]
[1769826841363,10.42485564,2692.9,2692.4,0.0011]
[1769826841760,10.42485564,2692.9,2692.0,0.0011]
[1769826841761,8.14147334,2692.7,2692.0,0.0011]
[1769826841973,8.14147334,2692.7,2692.1,0.0011]
[1769826843088,3.71346875,2693.1,2692.1,0.0011]
[1769826843089,0.01117672,2693.8,2692.7,7.80468146]
[1769826843292,9.13707314,2693.8,2692.9,13.33032925]
[1769826843462,9.13707314,2693.8,2693.0,7.80468146]
[1769826843801,8.14047334,2693.8,2693.0,7.80468146]
[1769826843964,8.14047334,2694.6,2693.0,7.80468146]
[1769826844151,0.778,2694.5,2693.1,7.80468146]
[1769826844352,8.14047334,2694.4,2693.1,7.80468146]
[1769826844566,0.98462548,2694.4,2693.3,7.80468146]
[1769826844984,9.12509882,2694.4,2693.3,7.80468146]
[1769826845688,9.38924444,2694.7,2693.7,7.80468146]
[1769826845869,1.2487711,2694.7,2693.7,7.80468146]
[1769826847513,1.2487711,2694.7,2693.9,7.60587874]
[1769826847708,1.8225339,2694.7,2693.9,7.60587874]
[1769826848228,0.89478507,2694.7,2693.9,7.60587874]
[1769826848599,0.32102227,2694.7,2694.0,7.60587874]
[1769826849101,0.92742144,2695.7,2694.6,7.60587874]
[1769826849425,0.30599249,2696.3,2694.6,7.60587874]
[1769826849426,8.06774454,2695.8,2694.6,7.60587874]
[1769826849629,0.80677445,2695.7,2694.8,7.60587874]
[1769826850692,8.87451899,2695.7,2694.8,7.60587874]
[1769826850930,9.80192393,2695.7,2694.7,0.92774705]
[1769826851102,8.06774454,2695.5,2694.7,0.92774705]
[1769826852842,1.35115136,2695.6,2694.7,8.53362579]
[1769826854311,0.001,2695.5,2694.7,8.53362579]
[1769826855114,0.30599249,2696.3,2695.1,7.60587874]
[1769826855515,1.35115136,2696.2,2695.1,7.60587874]
[1769826856212,1.35115136,2696.2,2695.3,7.60587874]
[1769826856411,0.30599249,2696.3,2695.3,7.60587874]
[1769826856639,1.35115136,2696.2,2695.5,7.60587874]
[1769826856826,1.35115136,2696.2,2695.3,7.60587874]
[1769826857027,1.35115136,2696.1,2695.3,7.60587874]
[1769826857239,1.35115136,2696.2,2695.3,7.60587874]
[1769826857430,2.18852506,2696.2,2695.3,7.60587874]
[1769826858445,2.18852506,2696.2,2695.4,8.53338486]
[1769826858744,8.37373703,2696.3,2695.4,8.53338486]
[1769826858745,0.30599249,2696.3,2695.4,8.53338486]
[1769826859048,1.65714385,2696.3,2695.4,8.53338486]
[1769826861742,8.06774454,2697.2,2695.6,7.60587874]
[1769826861944,8.06774454,2697.0,2695.8,7.60587874]
[1769826862112,8.06774454,2697.0,2695.4,0.92750612]
[1769826862113,8.06774454,2697.0,2695.5,7.60587874]
[1769826862312,8.06774454,2696.8,2695.5,7.60587874]
[1769826862513,8.06774454,2696.8,2695.7,7.60587874]
[1769826862744,1.35115136,2696.7,2695.7,7.60587874]
[1769826863120,1.35115136,2696.6,2695.7,7.60587874]
[1769826863327,1.35115136,2696.7,2695.7,7.60587874]
[1769826863528,0.30551763,2696.6,2695.7,8.24775203]
[1769826863738,9.72441353,2696.6,2695.7,7.60587874]
[1769826863940,1.35115136,2696.5,2695.7,7.60587874]
[1769826864130,1.35115136,2696.5,2695.6,0.9274373]
[1769826864131,9.4188959,2696.5,2695.6,0.9274373]
[1769826864336,10.39133725,2696.4,2695.6,0.9274373]
[1769826864654,8.99492598,2696.4,2695.6,0.9274373]
[1769826865548,2.27830541,2696.5,2695.6,0.9274373]
[1769826865858,1.35115136,2696.4,2695.6,0.9274373]
[1769826866148,1.35115136,2696.4,2694.8,1.4580317]
[1769826866149,9.4188959,2696.4,2695.3,7.60587874]
[1769826866319,9.72442644,2696.3,2695.1,0.92758449]
[1769826866515,8.06774454,2696.3,2695.6,0.0011]
[1769826866719,8.06774454,2696.3,2695.0,11.31643576]
[1769826866720,8.06774454,2696.1,2695.1,0.92760936]
[1769826866946,0.80677445,2696.0,2695.1,8.5334881]
[1769826867249,9.4166959,2696.1,2695.1,8.5334881]
[1769826867428,9.4166959,2696.1,2695.1,0.92760936]
[1769826869655,9.4166959,2696.1,2694.9,10.68367316]
[1769826869656,8.06774454,2695.9,2694.9,3.07779442]
[1769826870549,10.1936959,2695.8,2694.9,3.07779442]
[1769826870748,8.84474454,2695.8,2694.9,3.07779442]
[1769826872166,0.9274029,2695.7,2694.9,3.07779442]
[1769826872477,0.81255439,2695.6,2694.9,3.07779442]
[1769826872644,2.16150575,2695.6,2694.9,3.07779442]
[1769826872842,1.34895136,2695.5,2694.9,3.07779442]
[1769826873246,1.34895136,2695.4,2694.9,3.07779442]
[1769826873569,0.21615057,2695.4,2694.9,3.07779442]
[1769826873879,8.28389511,2695.4,2694.9,3.07779442]
[1769826874078,0.92757494,2695.2,2694.9,3.07779442]
[1769826874373,0.92757494,2695.2,2694.9,2.95978109]
[1769826874761,1.34895136,2695.1,2694.9,2.58996072]
[1769826874968,1.34895136,2695.1,2694.9,1.11039874]
[1769826874969,0.22765263,2695.0,2694.9,1.11039874]
[1769826875162,0.22765263,2695.0,2694.9,0.09255912]
[1769826875377,0.22765263,2695.0,2694.9,0.00144624]
[1769826875947,0.22765263,2695.0,2694.4,0.92784381]
[1769826876180,0.92757494,2695.2,2694.4,8.53372255]
[1769826876351,1.34895136,2695.1,2694.4,8.53372255]
[1769826877504,1.34895136,2695.1,2694.4,7.60587874]
[1769826877991,0.777,2695.0,2694.4,7.60587874]
[1769826878668,0.777,2695.0,2694.6,0.0011]
[1769826878868,1.08235661,2695.0,2694.6,0.0011]
[1769826882769,0.777,2695.0,2694.7,8.05533332]
[1769826883163,0.777,2695.0,2694.6,0.0011]
[1769826884598,0.21615057,2695.4,2694.7,8.05533332]
[1769826884796,1.34895136,2695.4,2694.7,8.05533332]
[1769826885004,1.34895136,2695.4,2694.7,8.98305923]
[1769826885180,2.27646061,2695.4,2694.7,8.05533332]
[1769826885380,10.20697583,2695.4,2694.6,0.92887892]
[1769826885982,10.20697583,2695.4,2694.6,2.19854548]
[1769826888570,10.20697583,2695.4,2694.6,8.98421224]
[1769826888772,1.34895136,2695.4,2694.6,8.98421224]
[1769826889505,0.92735353,2695.9,2694.6,8.98421224]
[1769826889670,1.34895136,2695.7,2694.6,8.98421224]
[1769826891412,0.001,2695.2,2694.6,8.98421224]
[1769826891612,1.34895136,2695.7,2694.9,8.05533332]
[1769826891908,1.34895136,2695.6,2694.9,8.05533332]
[1769826892105,1.34895136,2695.7,2694.9,8.05533332]
[1769826892310,1.34895136,2695.7,2694.9,9.5391121]
[1769826892513,1.34895136,2695.6,2694.9,2.41144888]
[1769826892694,8.85795144,2695.7,2694.9,0.9276701]
[1769826892895,9.27946658,2695.6,2694.9,0.9276701]
[1769826893421,1.34895136,2695.6,2694.9,8.98300342]
[1769826895530,1.34895136,2695.5,2694.9,8.98300342]
[1769826895702,1.34895136,2695.6,2694.9,8.98300342]
[1769826897205,1.34895136,2695.6,2694.9,10.3793416]
[1769826900635,1.34895136,2695.5,2694.9,10.3793416]
[1769826900823,1.34895136,2695.6,2695.0,8.05533332]
[1769826902862,1.34895136,2695.5,2694.9,1.39633818]
[1769826903017,8.15815113,2695.5,2694.6,0.0011]
[1769826903850,1.34895136,2695.4,2694.8,0.0011]
[1769826904229,2.12595136,2695.4,2694.8,0.0011]
[1769826904427,0.23545873,2695.3,2694.8,0.0011]
[1769826904625,1.16303228,2695.3,2694.8,0.0011]
[1769826908656,0.92735648,2695.9,2694.9,8.21145935]
[1769826908953,11.90381106,2696.1,2694.9,8.21145935]
[1769826908954,3.05326607,2696.0,2694.9,8.21145935]
[1769826909255,2.12595136,2696.0,2695.1,8.21145935]
[1769826909460,2.12595136,2696.0,2695.3,8.21145935]
[1769826909826,3.70856257,2696.5,2695.3,8.21145935]
[1769826909827,0.92717686,2696.4,2695.3,8.21145935]
[1769826910023,1.34895136,2696.4,2695.3,8.21145935]
[1769826910378,1.34895136,2696.3,2695.3,8.21145935]
[1769826910664,2.12595136,2696.6,2695.5,8.21145935]
[1769826910869,0.777,2696.6,2695.5,8.21145935]
[1769826911367,1.34895136,2696.5,2695.7,8.21145935]
[1769826911539,0.92702462,2696.8,2695.7,8.21145935]
[1769826911862,2.27597598,2696.8,2695.9,8.21145935]
[1769826912067,2.27597598,2696.8,2695.6,0.9274373]
[1769826912068,9.5436673,2696.7,2695.6,9.13889665]
[1769826912864,1.34895136,2696.6,2695.6,9.13889665]
[1769826913068,1.34895136,2696.6,2695.8,8.21145935]
[1769826913446,1.34895136,2696.6,2696.0,8.21145935]
[1769826913629,0.27898256,2696.9,2695.9,0.92733409]
[1769826913825,0.27898256,2696.9,2696.0,8.21145935]
[1769826914041,0.27898256,2696.9,2696.2,8.21145935]
[1769826914463,1.20597715,2696.9,2696.0,8.21145935]
[1769826915974,1.20597715,2696.9,2696.0,9.13873619]
[1769826916167,2.51682899,2696.9,2696.0,10.42354]
[1769826916325,1.5898344,2696.9,2696.1,8.21145935]
[1769826916666,0.27898256,2696.9,2696.1,8.21145935]
[1769826916869,0.001,2696.4,2696.1,8.21145935]
[1769826917035,0.27898256,2696.9,2696.1,8.21145935]
[1769826919184,0.27898256,2696.9,2696.2,0.92723091]
[1769826919389,0.27898256,2696.9,2696.3,8.21145935]
[1769826919578,2.56,2698.2,2696.2,0.92723091]
[1769826919579,3.70660371,2697.9,2696.7,8.21145935]
[1769826919779,8.19471594,2698.1,2697.0,8.21145935]
[1769826919995,8.19471594,2698.1,2697.1,9.58335394]
[1769826920390,0.92654362,2698.2,2697.1,9.58335394]
[1769826920586,0.9265166,2698.3,2697.2,13.71894591]
[1769826920903,0.98982325,2698.3,2697.4,8.21145935]
[1769826921109,0.92649979,2698.4,2697.4,8.21145935]
[1769826921414,10.17409303,2698.6,2697.5,0.92678405]
[1769826921567,10.17409303,2698.6,2697.5,9.1382434]
[1769826921763,10.17409303,2698.6,2697.6,8.21145935]
[1769826921764,1.38797182,2698.5,2697.6,8.21145935]
[1769826922389,1.05296729,2698.6,2697.6,8.21145935]
[1769826922591,0.97839478,2698.6,2697.7,8.21145935]
[1769826922907,1.70342635,2698.6,2697.8,0.82114594]
[1769826923225,0.777,2698.6,2697.7,9.1381747]
[1769826923384,0.92632358,2698.9,2697.8,9.4959726]
[1769826924321,0.92627343,2699.0,2697.8,9.4959726]
[1769826924915,9.12089689,2699.3,2697.8,9.4959726]
[1769826925144,0.81947159,2699.2,2698.0,8.21145935]
[1769826925346,9.12095061,2699.1,2698.0,9.13804896]
[1769826925705,9.12095061,2699.1,2698.0,0.92658961]
[1769826925905,9.12095061,2699.1,2697.2,0.9268664]
[1769826926114,8.19471594,2698.9,2697.3,0.92684729]
[1769826926336,1.2825884,2699.0,2697.9,0.92662255]
[1769826926543,1.2825884,2699.0,2697.5,0.92675299]
[1769826926544,9.47730434,2699.0,2697.5,0.92675299]
[1769826926722,8.19471594,2698.8,2697.6,0.43057836]
[1769826926916,8.19471594,2698.8,2697.7,0.92671264]
[1769826927212,9.1208654,2699.4,2698.0,9.13807103]
[1769826927411,9.01340368,2699.3,2698.1,1.28445203]
[1769826927823,9.01340368,2699.3,2698.1,9.49591138]
[1769826928223,0.81868774,2699.3,2698.1,9.49591138]
[1769826928534,0.92614946,2699.4,2698.3,8.21145935]
[1769826929045,9.1208654,2699.4,2697.9,0.92662149]
[1769826929250,9.1208654,2699.4,2697.8,3.70665224]
[1769826929424,8.19471594,2699.2,2697.8,3.70665224]
[1769826930614,8.19471594,2699.2,2697.8,0.92668099]
[1769826931429,8.19471594,2699.0,2697.8,0.92668099]
[1769826932864,0.92623467,2699.1,2697.6,0.0011]
[1769826932865,8.19471594,2698.8,2697.6,0.0011]
[1769826933075,8.19471594,2698.8,2697.6,0.92784636]
[1769826933434,0.92637195,2698.7,2697.6,0.0011]
[1769826933863,9.12108789,2698.7,2697.6,0.0011]
[1769826935553,0.776,2698.6,2697.6,8.21255935]
[1769826935874,8.65783328,2699.0,2697.7,9.03271528]
[1769826936065,0.92631579,2698.9,2697.7,9.03271528]
[1769826938168,0.92613173,2699.4,2697.9,8.23596348]
[1769826938369,0.92613173,2699.4,2698.1,8.22026102]
[1769826938775,8.99474549,2699.4,2698.1,8.22026102]
[1769826940286,0.92613173,2699.4,2698.3,8.22026102]
[1769826940584,8.86313846,2699.7,2698.3,8.22026102]
[1769826940585,0.92606312,2699.6,2698.3,8.22026102]
[1769826940785,0.90132016,2699.6,2698.5,8.22026102]
[1769826941285,0.0185247,2699.7,2698.5,8.22026102]
[1769826942294,0.0185247,2699.7,2698.9,8.22026102]
[1769826943794,9.0131736,2699.7,2698.6,8.22026102]
[1769826944099,9.0131736,2699.7,2697.9,0.0011]
[1769826944100,9.0131736,2699.7,2698.2,9.14680028]
[1769826944258,8.06861376,2699.5,2698.3,1.28531081]
[1769826944991,8.06861376,2699.5,2697.9,8.22136102]
[1769826945194,8.06861376,2699.5,2698.1,0.92657359]
[1769826945356,8.84461376,2699.5,2698.2,0.92654124]
[1769826945554,8.84461376,2699.5,2697.9,8.22136102]
[1769826945787,8.06861376,2699.3,2698.1,0.92655543]
[1769826945984,8.06861376,2699.3,2698.2,0.92653677]
[1769826946893,8.99481411,2699.2,2698.1,0.92657796]
[1769826947422,1.80686947,2699.4,2698.2,8.22026102]
[1769826947598,0.92613366,2699.4,2698.2,8.22026102]
[1769826947958,11.77297201,2699.6,2698.2,8.22026102]
[1769826947959,0.92606312,2699.6,2698.2,8.22026102]
[1769826948874,9.01318763,2699.7,2698.2,8.22026102]
[1769826949191,1.27171863,2699.6,2698.4,9.14673596]
[1769826949571,9.01317265,2699.7,2698.4,9.14673596]
[1769826949897,9.01317265,2699.7,2698.3,1.84119172]
[1769826950091,9.01317265,2699.7,2698.3,0.92650782]
[1769826951809,9.01317265,2699.7,2698.3,8.22026102]
[1769826952922,9.01317265,2699.7,2698.1,0.92657796]
[1769826954677,9.01317265,2699.7,2698.5,0.0011]
[1769826955006,8.06861376,2699.5,2698.5,0.0011]
[1769826958817,0.92613173,2699.4,2698.5,0.0011]
[1769826959014,8.99474549,2699.4,2698.5,0.0011]
[1769826959310,0.92613173,2699.4,2698.5,8.22136102]
[1769826959513,0.92611391,2699.5,2698.6,9.04239712]
[1769826959819,2.19781802,2699.6,2698.6,9.04239712]
[1769826960229,0.0185247,2699.7,2698.6,9.04239712]
[1769826960696,9.01317003,2699.7,2698.6,9.04239712]
[1769826960894,9.01317003,2699.7,2698.6,1.74853079]
[1769826961109,9.01317003,2699.7,2698.5,0.0011]
[1769826961319,0.94455627,2699.7,2698.7,8.22026102]
[1769826961500,0.0185247,2699.7,2698.7,8.22026102]
[1769826961927,0.94456655,2699.7,2698.7,8.22026102]
[1769826962110,0.94456655,2699.7,2698.8,0.91466649]
[1769826962823,0.94456655,2699.7,2698.9,0.9263033]
[1769826963887,9.01318031,2699.7,2698.8,1.84098367]
[1769826964703,0.0185247,2699.7,2698.8,1.84098367]
[1769826964917,0.0185247,2699.7,2699.0,0.92626898]
[1769826965787,0.94455721,2699.7,2698.9,1.37666914]
[1769826966416,0.94455721,2699.7,2698.9,2.30296735]
[1769826967635,0.001,2699.5,2698.9,2.30296735]
[1769826967835,0.001,2699.5,2699.0,0.23029673]
[1769826969535,0.001,2699.5,2699.0,1.1565647]
[1769826971048,8.48012392,2699.5,2698.9,1.37666914]
[1769826971247,0.001,2699.5,2698.9,0.92628363]
[1769826971398,0.001,2699.5,2698.5,0.0011]
[1769826971399,0.001,2699.5,2699.0,0.92625583]
[1769826971606,0.0185247,2699.7,2699.0,9.41641122]
[1769826971831,0.0185247,2699.7,2699.2,8.49015539]
[1769826973445,0.92584778,2700.3,2699.2,8.49015539]
[1769826973603,0.92584778,2700.3,2699.3,0.92616604]
[1769826973812,0.92584778,2700.3,2699.3,9.41632143]
[1769826974043,0.92584778,2700.3,2699.4,1.31209856]
[1769826975745,9.4049717,2700.3,2699.4,1.31209856]
[1769826976212,9.4049717,2700.3,2699.2,0.92619346]
[1769826976645,9.4049717,2700.3,2699.1,0.9262174]
[1769826978131,9.4049717,2700.3,2698.9,3.70517519]
[1769826978329,9.4049717,2700.3,2698.9,12.19533058]
[1769826978657,9.4049717,2700.3,2698.8,0.92633319]
[1769826978861,8.47912392,2700.1,2698.7,0.92636826]
[1769826979221,8.47912392,2700.1,2698.8,0.92633437]
[1769826980563,8.47912392,2699.9,2698.7,0.92637195]
[1769826980860,8.47912392,2699.9,2698.7,2.23869312]
[1769826981424,8.47912392,2699.9,2698.7,10.72884851]
[1769826982527,9.40511843,2699.8,2698.7,10.72884851]
[1769826983260,9.40511843,2699.8,2698.8,8.49015539]
[1769826983572,1.68999465,2700.0,2698.9,9.56304024]
[1769826983778,0.001,2700.1,2698.9,9.56304024]
[1769826983931,8.47912392,2701.3,2699.5,8.49015539]
[1769826984230,8.47912392,2701.1,2699.7,8.49015539]
[1769826984643,8.47912392,2700.9,2699.7,9.41617049]
[1769826985824,8.47912392,2700.9,2699.3,0.92614269]
[1769826986028,8.47912392,2700.7,2699.1,8.49015539]
[1769826986228,8.47912392,2700.5,2698.9,4.77796544]
[1769826986469,8.47912392,2700.5,2699.0,0.9262643]
[1769826986667,8.47912392,2700.3,2699.0,0.9262643]
[1769826986873,8.47912392,2700.1,2699.1,0.19991492]
[1769826987239,9.40491269,2700.4,2699.1,8.69007031]
[1769826987467,0.92576685,2700.5,2699.3,8.49015539]
[1769826987634,0.92576685,2700.5,2699.5,8.49015539]
[1769826987831,9.40482498,2700.7,2699.5,8.49015539]
[1769826988036,1.70170106,2700.7,2699.5,8.49015539]
[1769826989035,1.70170106,2700.7,2699.6,0.92606312]
[1769826989238,1.70170106,2700.7,2699.7,1.3120471]
[1769826989685,10.18082498,2700.7,2699.7,1.3120471]
[1769826989849,9.40481013,2700.7,2699.7,1.3120471]
[1769826991798,9.40481013,2700.7,2699.7,2.23807557]
[1769826992867,0.001,2700.5,2699.7,2.23807557]
[1769826993174,0.001,2700.5,2699.8,0.22380756]
[1769826996048,0.92675448,2700.5,2699.8,0.22380756]
[1769826997557,8.83074474,2700.5,2699.8,0.22380756]
[1769827000485,8.83074474,2700.5,2699.4,1.7751244]
[1769827000687,8.83074474,2700.5,2699.4,0.92610886]
[1769827001180,8.83074474,2700.5,2699.3,0.92614335]
[1769827002586,8.83074474,2700.5,2699.2,12.24617769]
[1769827002788,8.83074474,2700.5,2699.3,9.46766661]
[1769827003087,9.6562657,2700.4,2699.4,9.85873494]
[1769827003290,0.776,2700.3,2699.4,9.85873494]
[1769827003583,9.17889444,2700.4,2699.4,9.85873494]
[1769827005491,8.40289444,2700.2,2699.1,0.92620342]
[1769827006293,8.40289444,2700.2,2699.6,0.0011]
[1769827006993,8.40289444,2700.2,2699.0,0.92623965]
[1769827007203,8.40289444,2700.2,2699.0,0.92626424]
[1769827007535,0.92592592,2700.0,2699.1,9.9309645]
[1769827007702,13.81546989,2700.1,2699.1,9.9309645]
[1769827007703,1.85878751,2700.1,2699.1,9.9309645]